fUSD/lending_fUSD_20241221
["ID","MTS","AMOUNT","RATE_DAILY","PERIOD"]
[346190996,1734769884293,-500.0,0.00020714,2]
[346190997,1734769884302,-2066.3,0.00020714,2]
[346190998,1734769884311,-500.0,0.00020714,2]
[346190999,1734769884320,-500.0,0.00020714,2]
[346191000,1734769884330,-500.0,0.00020714,2]
[346191001,1734769884339,-500.0,0.00020714,2]
[346191002,1734769884349,-615.9,0.00020714,2]
[346191003,1734769884358,-1184.33,0.00020714,2]
[346191004,1734769884368,-500.0,0.00020714,2]
[346191005,1734769884377,-500.0,0.00020714,2]
[346191006,1734769884388,-2103.98,0.00020714,2]
[346191007,1734769884398,-1834.81,0.00020714,2]
[346191008,1734769884408,-4676.27,0.00020714,2]
[346191009,1734769884418,-500.0,0.00020714,2]
[346191010,1734769884427,-500.0,0.00020714,2]
[346191011,1734769884437,-3208.63,0.00020714,2]
[346191012,1734769884447,-500.0,0.00020714,2]
[346191013,1734769884456,-500.0,0.00020714,2]
[346191014,1734769884466,-500.0,0.00020714,2]
[346191015,1734769884477,-500.0,0.00020714,2]
[346191016,1734769884489,-500.0,0.00020714,2]
[346191017,1734769884499,-2622.64,0.00020714,2]
[346191018,1734769884508,-729.95,0.00020714,2]
[346191019,1734769884518,-1522.05,0.00020714,2]
[346191020,1734769884528,-500.0,0.00020714,2]
[346191021,1734769884538,-500.0,0.00020714,2]
[346191022,1734769884548,-500.0,0.00020714,2]
[346191023,1734769884558,-500.0,0.00020714,2]
[346191024,1734769884567,-872.79,0.00020714,2]
[346191025,1734769884577,-554.69,0.00020714,2]
[346191026,1734769884587,-500.0,0.00020714,2]
[346191027,1734769884596,-500.0,0.00020714,2]
[346191028,1734769884606,-1740.06,0.00020714,2]
[346191029,1734769884615,-8313.36,0.00020714,2]
[346191030,1734769884625,-500.0,0.00020714,2]
[346191031,1734769884634,-807.11,0.00020715,2]
[346191032,1734769884644,-1622.3,0.00020715,2]
[346191033,1734769884653,-2408.36,0.00020715,2]
[346191034,1734769884663,-1853.05,0.00020715,2]
[346191035,1734769884672,-599.34,0.00020715,2]
[346191036,1734769884682,-1437.49,0.00020715,2]
[346191037,1734769884692,-2962.33,0.00020715,2]
[346191038,1734769884701,-1377.35,0.00020715,2]
[346191039,1734769884711,-4029.78,0.00020715,2]
[346191040,1734769884721,-1342.55,0.00020715,2]
[346191041,1734769884731,-150.0,0.00020744,4]
[346191042,1734769884740,-153.0,0.00020781,2]
[346191043,1734769884750,-153.0,0.00020781,2]
[346191044,1734769884760,-153.0,0.00020781,2]
[346191045,1734769884769,-153.0,0.00020781,2]
[346191046,1734769884781,-153.0,0.00020781,2]
[346191047,1734769884790,-153.0,0.00020781,2]
[346191048,1734769884800,-153.0,0.00020781,2]
[346191049,1734769884810,-153.0,0.00020781,2]
[346191050,1734769884820,-153.0,0.00020781,2]
[346191051,1734769884829,-153.0,0.00020781,2]
[346191052,1734769884839,-153.0,0.00020781,2]
[346191053,1734769884848,-153.0,0.00020781,2]
[346191054,1734769884858,-150.0,0.00020784,4]
[346191055,1734769884868,-1079.48,0.00020806,2]
[346191056,1734769884878,-500.0,0.00020814,2]
[346191057,1734769884888,-896.14,0.00020814,2]
[346191058,1734769884897,-560.27,0.00020814,2]
[346191059,1734769884907,-518.18,0.00020814,2]
[346191060,1734769884916,-500.0,0.00020814,2]
[346191061,1734769884926,-748.73,0.00020814,2]
[346191062,1734769884936,-771.79,0.00020814,2]
[346191063,1734769884945,-500.0,0.00020814,2]
[346191064,1734769884955,-1095.4,0.00020814,2]
[346191065,1734769884964,-500.0,0.00020814,2]
[346191066,1734769884974,-1543.7,0.00020814,2]
[346191067,1734769884983,-684.8,0.00020814,2]
[346191068,1734769884993,-836.87,0.00020814,2]
[346191069,1734769885002,-500.0,0.00020814,2]
[346191070,1734769885012,-500.0,0.00020814,2]
[346191071,1734769885021,-934.15,0.00020814,2]
[346191072,1734769885033,-500.0,0.00020814,2]
[346191073,1734769885043,-719.72,0.00020814,2]
[346191074,1734769885056,-506.19,0.00020814,2]
[346191075,1734769885066,-521.06,0.00020814,2]
[346191076,1734769885076,-832.43,0.00020814,2]
[346191077,1734769885087,-671.61,0.00020814,2]
[346191078,1734769885097,-653.84,0.00020814,2]
[346191079,1734769885106,-880.14,0.00020814,2]
[346191080,1734769885117,-1000.59,0.00020814,2]
[346191081,1734769885126,-1101.22,0.00020814,2]
[346191082,1734769885136,-657.85,0.00020814,2]
[346191083,1734769885146,-500.0,0.00020814,2]
[346191084,1734769885155,-774.6,0.00020814,2]
[346191085,1734769885165,-500.0,0.00020814,2]
[346191086,1734769885174,-954.05,0.00020814,2]
[346191087,1734769885184,-1138.7,0.00020814,2]
[346191088,1734769885194,-500.0,0.00020814,2]
[346191089,1734769885203,-929.19,0.00020814,2]
[346191090,1734769885213,-754.06,0.00020814,2]
[346191091,1734769885222,-500.0,0.00020814,2]
[346191092,1734769885231,-673.28,0.00020814,2]
[346191093,1734769885241,-581.25,0.00020814,2]
[346191094,1734769885250,-675.51,0.00020814,2]
[346191095,1734769885260,-1127.19,0.00020814,2]
[346191096,1734769885269,-500.0,0.00020814,2]
[346191097,1734769885280,-1260.74,0.00020814,2]
[346191098,1734769885290,-503.55,0.00020814,2]
[346191099,1734769885301,-1143.47,0.00020814,2]
[346191100,1734769885311,-829.64,0.00020814,2]
[346191101,1734769885321,-331.72376912,0.00020814,2]
[346191102,1734769885330,-500.0,0.00020814,2]
[346191103,1734769885339,-500.0,0.00020814,2]
[346191104,1734769885349,-500.0,0.00020814,2]
[346191105,1734769885358,-766.03,0.00020814,2]
[346191106,1734769885368,-551.84,0.00020814,2]
[346191107,1734769885377,-500.0,0.00020814,2]
[346191108,1734769885387,-508.5,0.00020814,2]
[346191109,1734769885396,-749.47,0.00020814,2]
[346191110,1734769885405,-500.0,0.00020814,2]
[346191111,1734769885415,-1147.83,0.00020814,2]
[346191112,1734769885425,-959.63,0.00020814,2]
[346191113,1734769885435,-895.71,0.00020814,2]
[346191114,1734769885444,-869.86,0.00020814,2]
[346191115,1734769885454,-1036.93,0.00020814,2]
[346191116,1734769885464,-1138.3,0.00020814,2]
[346191117,1734769885473,-500.0,0.00020814,2]
[346191118,1734769885482,-500.0,0.00020814,2]
[346191119,1734769885492,-500.0,0.00020814,2]
[346191120,1734769885501,-1010.11,0.00020814,2]
[346191121,1734769885511,-717.94,0.00020814,2]
[346191122,1734769885520,-866.44,0.00020814,2]
[346191123,1734769885531,-666.0,0.00020815,2]
[346191124,1734769885541,-692.41,0.00020815,2]
[346191125,1734769885551,-692.41,0.00020815,2]
[346191126,1734769885560,-692.41,0.00020815,2]
[346191127,1734769885576,-692.41,0.00020815,2]
[346191128,1734769885586,-692.54,0.00020815,2]
[346191129,1734769885595,-500.0,0.00020816,2]
[346191130,1734769885606,-500.0,0.00020816,2]
[346191131,1734769885616,-500.0,0.00020816,2]
[346191132,1734769885627,-500.0,0.00020816,2]
[346191133,1734769885637,-500.0,0.00020816,2]
[346191134,1734769885647,-500.0,0.00020816,2]
[346191135,1734769885657,-500.0,0.00020816,2]
[346191136,1734769885666,-520.73,0.00020816,2]
[346191137,1734769885676,-500.0,0.00020816,2]
[346191138,1734769885686,-500.0,0.00020816,2]
[346191139,1734769885696,-500.0,0.00020816,2]
[346191140,1734769885705,-500.0,0.00020816,2]
[346191141,1734769885715,-500.0,0.00020816,2]
[346191142,1734769885724,-500.0,0.00020816,2]
[346191143,1734769885735,-500.0,0.00020816,2]
[346191144,1734769885745,-500.0,0.00020816,2]
[346191145,1734769885755,-815.52,0.00020816,2]
[346191146,1734769885765,-697.163733,0.00020816,2]
[346191147,1734769885776,-500.0,0.00020816,2]
[346191148,1734769885787,-2359.453679,0.00020816,2]
[346191149,1734769885796,-690.78,0.00020816,2]
[346191150,1734769885806,-151.0,0.00020816,2]
[346191151,1734769885816,-151.0,0.00020816,2]
[346191152,1734769885826,-500.0,0.00020816,2]
[346191153,1734769885837,-500.0,0.00020816,2]
[346191154,1734769885849,-500.0,0.00020816,2]
[346191155,1734769885859,-500.0,0.00020816,2]
[346191156,1734769885870,-500.0,0.00020816,2]
[346191157,1734769885881,-500.0,0.00020816,2]
[346191158,1734769885891,-500.0,0.00020816,2]
[346191159,1734769885901,-500.0,0.00020816,2]
[346191160,1734769885911,-151.0,0.00020816,2]
[346191161,1734769885921,-245.089358,0.00020816,2]
[346191162,1734769885932,-718.77,0.00020816,2]
[346191163,1734769885942,-500.0,0.00020816,2]
[346191164,1734769885952,-500.0,0.00020816,2]
[346191165,1734769885961,-151.0,0.00020816,2]
[346191166,1734769885971,-632.48,0.00020816,2]
[346191167,1734769885981,-500.0,0.00020816,2]
[346191168,1734769885991,-500.0,0.00020816,2]
[346191169,1734769886002,-743.32,0.00020816,2]
[346191170,1734769886012,-549.62,0.00020816,2]
[346191171,1734769886022,-787.15,0.00020816,2]
[346191172,1734769886032,-1315.85,0.00020816,2]
[346191173,1734769886042,-500.0,0.00020816,2]
[346191174,1734769886056,-500.0,0.00020816,2]
[346191175,1734769886065,-500.0,0.00020816,2]
[346191176,1734769886075,-500.0,0.00020816,2]
[346191177,1734769886085,-500.0,0.00020816,2]
[346191178,1734769886095,-704.01,0.00020816,2]
[346191179,1734769886105,-500.0,0.00020816,2]
[346191180,1734769886114,-661.33,0.00020816,2]
[346191181,1734769886127,-526.74,0.00020816,2]
[346191182,1734769886137,-500.0,0.00020816,2]
[346191183,1734769886147,-842.34,0.00020816,2]
[346191184,1734769886158,-757.69,0.00020816,2]
[346191185,1734769886168,-270.64657507,0.00020816,2]
[346191186,1734769886178,-500.0,0.00020816,2]
[346191187,1734769886187,-500.0,0.00020816,2]
[346191188,1734769886197,-585.39,0.00020816,2]
[346191189,1734769886207,-500.0,0.00020816,2]
[346191190,1734769886216,-636.28,0.00020816,2]
[346191191,1734769886226,-890.26,0.00020816,2]
[346191192,1734769886236,-534.84,0.00020816,2]
[346191193,1734769886246,-500.0,0.00020816,2]
[346191194,1734769886258,-932.08,0.00020816,2]
[346191195,1734769886268,-1134.01,0.00020816,2]
[346191196,1734769886279,-600.68,0.00020816,2]
[346191197,1734769886288,-855.23,0.00020816,2]
[346191198,1734769886299,-1029.74,0.00020816,2]
[346191199,1734769886308,-500.0,0.00020816,2]
[346191200,1734769886318,-1143.08,0.00020816,2]
[346191201,1734769886328,-500.0,0.00020816,2]
[346191202,1734769886338,-1431.58,0.00020816,2]
[346191203,1734769886348,-1062.77,0.00020816,2]
[346191204,1734769886360,-509.15270839,0.00020816,2]
[346191205,1734769886371,-955.25,0.00020816,2]
[346191206,1734769886381,-1134.38,0.00020816,2]
[346191207,1734769886391,-762.27,0.00020816,2]
[346191208,1734769886401,-759.77,0.00020816,2]
[346191209,1734769886411,-852.61,0.00020816,2]
[346191210,1734769886421,-1483.74,0.00020816,2]
[346191211,1734769886430,-666.82,0.00020816,2]
[346191212,1734769886440,-500.0,0.00020816,2]
[346191213,1734769886450,-926.1,0.00020816,2]
[346191214,1734769886460,-500.0,0.00020816,2]
[346191215,1734769886470,-617.66,0.00020816,2]
[346191216,1734769886480,-783.6,0.00020816,2]
[346191217,1734769886490,-500.0,0.00020816,2]
[346191218,1734769886500,-982.44,0.00020816,2]
[346191219,1734769886510,-151.0,0.00020816,2]
[346191220,1734769886521,-1160.56,0.00020816,2]
[346191221,1734769886532,-297.223263,0.00020816,2]
[346191222,1734769886542,-297.223263,0.00020816,2]
[346191223,1734769886552,-500.0,0.00020816,2]
[346191224,1734769886562,-500.0,0.00020816,2]
[346191225,1734769886573,-531.21,0.00020816,2]
[346191226,1734769886583,-2006.63,0.00020821,2]
[346191227,1734769886594,-500.0,0.00020821,2]
[346191228,1734769886603,-500.0,0.00020821,2]
[346191229,1734769886614,-2236.16,0.00020821,2]
[346191230,1734769886624,-1041.22,0.00020821,2]
[346191231,1734769886634,-1756.06,0.00020821,2]
[346191232,1734769886644,-522.77274869,0.00020821,2]
[346191233,1734769886654,-500.0,0.00020821,2]
[346191234,1734769886664,-3286.21,0.00020821,2]
[346191235,1734769886674,-3384.13,0.00020821,2]
[346191236,1734769886685,-3504.58,0.00020821,2]
[346191237,1734769886695,-1682.69,0.00020821,2]
[346191238,1734769886705,-500.0,0.00020821,2]
[346191239,1734769886714,-4268.95,0.00020821,2]
[346191240,1734769886724,-1837.3,0.00020821,2]
[346191241,1734769886735,-500.0,0.00020821,2]
[346191242,1734769886935,-1195.99,0.00020821,2]
[346191243,1734769886951,-1493.08,0.00020821,2]
[346191244,1734769886960,-2337.63,0.00020821,2]
[346191245,1734769886970,-30824.23,0.00020821,2]
[346191246,1734769886980,-1086.39,0.00020821,2]
[346191247,1734769886989,-500.0,0.00020821,2]
[346191248,1734769886999,-1126.87,0.00020821,2]
[346191249,1734769887009,-1124.1,0.00020821,2]
[346191250,1734769887018,-1271.09,0.00020821,2]
[346191251,1734769887028,-500.0,0.00020821,2]
[346191252,1734769887037,-615.26,0.00020821,2]
[346191253,1734769887050,-200.0,0.00020833,2]
[346191254,1734769887060,-200.0,0.00020833,2]
[346191255,1734769887070,-500.0,0.00020842,2]
[346191256,1734769887079,-500.0,0.00020842,2]
[346191257,1734769887090,-500.0,0.00020842,2]
[346191258,1734769887101,-500.0,0.00020842,2]
[346191259,1734769887110,-512.2479325,0.00020842,2]
[346191260,1734769887120,-670.15,0.00020843,2]
[346191261,1734769887132,-2498.82,0.00020843,2]
[346191262,1734769887143,-534.2,0.00020843,2]
[346191263,1734769887152,-1704.38,0.00020843,2]
[346191264,1734769887162,-989.16,0.00020843,2]
[346191265,1734769887171,-155.072584,0.00020843,2]
[346191266,1734769887179,-1850.446606,0.00020843,2]
[346191267,1734769887186,-1732.72,0.00020843,2]
[346191268,1734769887194,-500.0,0.00020843,2]
[346191269,1734769887203,-1409.43,0.00020843,2]
[346191270,1734769887212,-2295.414532,0.00020843,2]
[346191271,1734769887221,-2264.0,0.00020843,2]
[346191272,1734769887230,-788.06,0.00020843,2]
[346191273,1734769887239,-624.58,0.00020843,2]
[346191274,1734769887248,-2855.29,0.00020843,2]
[346191275,1734769887257,-500.0,0.00020843,2]
[346191276,1734769887267,-1040.51,0.00020843,2]
[346191277,1734769887276,-500.0,0.00020843,2]
[346191278,1734769887289,-2075.7,0.00020843,2]
[346191279,1734769887299,-1269.52,0.00020843,2]
[346191280,1734769887308,-7720.01,0.00020843,2]
[346191281,1734769887318,-1581.9,0.00020843,2]
[346191282,1734769887327,-1508.43,0.00020843,2]
[346191283,1734769887336,-500.0,0.00020843,2]
[346191284,1734769887345,-1248.42,0.00020843,2]
[346191285,1734769887354,-4712.38,0.00020843,2]
[346191286,1734769887363,-7848.69,0.00020843,2]
[346191287,1734769887372,-158.587973,0.00020843,2]
[346191288,1734769887381,-2305.0,0.00020843,2]
[346191289,1734769887390,-500.0,0.00020843,2]
[346191290,1734769887399,-500.0,0.00020843,2]
[346191291,1734769887408,-152.502651,0.00020843,2]
[346191292,1734769887417,-153.376122,0.00020843,2]
[346191293,1734769887426,-500.0,0.00020843,2]
[346191294,1734769887435,-500.0,0.00020843,2]
[346191295,1734769887444,-8230.89,0.00020843,2]
[346191296,1734769887453,-1817.88,0.00020843,2]
[346191297,1734769887462,-150.0,0.00020843,4]
[346191298,1734769887471,-150.0,0.00020843,4]
[346191299,1734769887481,-150.0,0.00020865,4]
[346191300,1734769887490,-2942.0,0.000209,2]
[346191301,1734769887499,-154.76273,0.000209,2]
[346191302,1734769887508,-184.102424,0.000209,2]
[346191303,1734769887517,-151.0,0.000209,2]
[346191304,1734769887526,-151.0,0.000209,2]
[346191305,1734769887537,-697.163733,0.000209,2]
[346191306,1734769887546,-697.163733,0.000209,2]
[346191307,1734769887555,-2359.453679,0.000209,2]
[346191308,1734769887565,-151.0,0.000209,2]
[346191309,1734769887574,-151.0,0.000209,2]
[346191310,1734769887583,-151.0,0.000209,2]
[346191311,1734769887592,-151.662056,0.000209,2]
[346191312,1734769887601,-151.0,0.000209,2]
[346191313,1734769887610,-151.545518,0.000209,2]
[346191314,1734769887619,-151.0,0.000209,2]
[346191315,1734769887628,-151.0,0.000209,2]
[346191316,1734769887639,-223.317345,0.000209,2]
[346191317,1734769887650,-223.317345,0.000209,2]
[346191318,1734769887659,-350995.66705166,0.000209,2]
[346191319,1734769887668,-400.0,0.000209,7]
[346191320,1734769887678,-1665.688369,0.000209,2]
[346191321,1734769887687,-1665.688369,0.000209,2]
[346191322,1734769887696,-1182.01191196,0.00020922,2]
[346191323,1734769887706,-808.1,0.00020934,2]
[346191324,1734769887716,-167.81,0.00020937,2]
[346191325,1734769887725,-1468.9277112,0.00020941,2]
[346191326,1734769887734,-1006.76,0.00020943,2]
[346191327,1734769887747,-1107.72,0.00020943,2]
[346191328,1734769887758,-500.0,0.00020943,2]
[346191329,1734769887768,-500.0,0.00020943,2]
[346191330,1734769887778,-500.0,0.00020943,2]
[346191331,1734769887791,-963.91,0.00020943,2]
[346191332,1734769887802,-500.0,0.00020943,2]
[346191333,1734769887812,-500.0,0.00020943,2]
[346191334,1734769887822,-899.8,0.00020943,2]
[346191335,1734769887831,-550.76,0.00020943,2]
[346191336,1734769887841,-786.66,0.00020943,2]
[346191337,1734769887850,-581.7,0.00020943,2]
[346191338,1734769887860,-531.56,0.00020943,2]
[346191339,1734769887870,-500.0,0.00020943,2]
[346191340,1734769887879,-500.0,0.00020943,2]
[346191341,1734769887889,-225.21334493,0.00020943,2]
[346191342,1734769887899,-817.02,0.00020943,2]
[346191343,1734769887909,-500.0,0.00020943,2]
[346191344,1734769887919,-213.07822705,0.00020943,2]
[346191345,1734769887929,-986.87,0.00020943,2]
[346191346,1734769887939,-527.90320449,0.00020943,2]
[346191347,1734769887950,-908.9,0.00020943,2]
[346191348,1734769887960,-1018.49,0.00020943,2]
[346191349,1734769887970,-1079.48,0.00020943,2]
[346191350,1734769887980,-500.0,0.00020943,2]
[346191351,1734769887991,-500.0,0.00020943,2]
[346191352,1734769888000,-1322.87,0.00020943,2]
[346191353,1734769888010,-500.0,0.00020943,2]
[346191354,1734769888020,-500.0,0.00020943,2]
[346191355,1734769888031,-1111.98,0.00020943,2]
[346191356,1734769888041,-500.0,0.00020943,2]
[346191357,1734769888057,-1463.24,0.00020943,2]
[346191358,1734769888066,-500.0,0.00020943,2]
[346191359,1734769888076,-1272.79,0.00020943,2]
[346191360,1734769888087,-653.5,0.00020943,2]
[346191361,1734769888097,-1142.97,0.00020943,2]
[346191362,1734769888107,-500.0,0.00020943,2]
[346191363,1734769888117,-1214.5,0.00020943,2]
[346191364,1734769888129,-693.93,0.00020943,2]
[346191365,1734769888139,-500.0,0.00020943,2]
[346191366,1734769888150,-500.0,0.00020943,2]
[346191367,1734769888159,-500.0,0.00020943,2]
[346191368,1734769888169,-500.0,0.00020943,2]
[346191369,1734769888179,-535.74,0.00020943,2]
[346191370,1734769888189,-866.47,0.00020943,2]
[346191371,1734769888199,-500.0,0.00020943,2]
[346191372,1734769888208,-500.0,0.00020943,2]
[346191373,1734769888218,-1062.63,0.00020943,2]
[346191374,1734769888227,-310.45685144,0.00020943,2]
[346191375,1734769888237,-771.8,0.00020943,2]
[346191376,1734769888246,-500.0,0.00020943,2]
[346191377,1734769888256,-500.0,0.00020943,2]
[346191378,1734769888266,-500.0,0.00020943,2]
[346191379,1734769888275,-500.0,0.00020943,2]
[346191380,1734769888287,-594.86,0.00020943,2]
[346191381,1734769888297,-1067.07,0.00020943,2]
[346191382,1734769888307,-500.0,0.00020943,2]
[346191383,1734769888317,-521.59,0.00020943,2]
[346191384,1734769888327,-500.0,0.00020943,2]
[346191385,1734769888336,-1968.56,0.00020943,2]
[346191386,1734769888345,-897.44,0.00020943,2]
[346191387,1734769888355,-1678.37,0.00020943,2]
[346191388,1734769888364,-743.27,0.00020943,2]
[346191389,1734769888374,-1183.83,0.00020943,2]
[346191390,1734769888383,-1115.72,0.00020943,2]
[346191391,1734769888392,-637.53,0.00020943,2]
[346191392,1734769888402,-500.0,0.00020943,2]
[346191393,1734769888412,-694.28,0.00020943,2]
[346191394,1734769888422,-1132.35,0.00020943,2]
[346191395,1734769888434,-720.98,0.00020943,2]
[346191396,1734769888443,-754.31,0.00020943,2]
[346191397,1734769888453,-1056.77,0.00020943,2]
[346191398,1734769888465,-1699.2,0.00020943,2]
[346191399,1734769888476,-958.54,0.00020943,2]
[346191400,1734769888487,-725.66,0.00020943,2]
[346191401,1734769888498,-1303.37,0.00020943,2]
[346191402,1734769888508,-1519.2,0.00020943,2]
[346191403,1734769888519,-1616.36,0.00020943,2]
[346191404,1734769888528,-1428.2,0.00020943,2]
[346191405,1734769888539,-601.26,0.00020943,2]
[346191406,1734769888548,-854.19,0.00020943,2]
[346191407,1734769888559,-500.0,0.00020943,2]
[346191408,1734769888569,-500.0,0.00020943,2]
[346191409,1734769888578,-514.03,0.00020943,2]
[346191410,1734769888587,-1403.09,0.00020943,2]
[346191411,1734769888597,-1542.93,0.00020943,2]
[346191412,1734769888606,-709.92,0.00020943,2]
[346191413,1734769888616,-1934.91,0.00020943,2]
[346191414,1734769888626,-742.36,0.00020943,2]
[346191415,1734769888635,-500.0,0.00020943,2]
[346191416,1734769888646,-2451.17,0.00020943,2]
[346191417,1734769888657,-500.0,0.00020943,2]
[346191418,1734769888668,-500.0,0.00020943,2]
[346191419,1734769888679,-825.21,0.00020943,2]
[346191420,1734769888690,-1111.89,0.00020943,2]
[346191421,1734769888699,-1379.34,0.00020943,2]
[346191422,1734769888709,-500.0,0.00020943,2]
[346191423,1734769888719,-4072.68,0.00020943,2]
[346191424,1734769888729,-1131.46,0.00020943,2]
[346191425,1734769888739,-4144.12,0.00020943,2]
[346191426,1734769888748,-150.0,0.00020946,4]
[346191427,1734769888757,-961.0,0.00020971,2]
[346191428,1734769888768,-500.0,0.00020973,2]
[346191429,1734769888780,-500.0,0.00020973,2]
[346191430,1734769888790,-876696.79672683,0.0002098,2]
[346191431,1734769888799,-151.0,0.0002098,2]
[346191432,1734769888811,-151.0,0.0002098,2]
[346191433,1734769888821,-214.68543,0.0002098,2]
[346191434,1734769888832,-151.0,0.0002098,2]
[346191435,1734769888844,-1665.688369,0.0002098,2]
[346191436,1734769888853,-1665.688369,0.0002098,2]
[346191437,1734769888863,-151.0,0.0002098,2]
[346191438,1734769888873,-151.0,0.0002098,2]
[346191439,1734769888883,-151.0,0.0002098,2]
[346191440,1734769888893,-297.223263,0.0002098,2]
[346191441,1734769888903,-297.223263,0.0002098,2]
[346191442,1734769888913,-314.74090148,0.00020984,2]
[346191443,1734769888924,-3503.71,0.00020987,2]
[346191444,1734769888934,-1024.59,0.00020987,2]
[346191445,1734769888944,-3237.21,0.00020987,2]
[346191446,1734769888955,-500.0,0.00020987,2]
[346191447,1734769888966,-1586.97,0.00020987,2]
[346191448,1734769888976,-500.0,0.00020988,2]
[346191449,1734769888986,-500.0,0.00020988,2]
[346191450,1734769888995,-500.0,0.00020988,2]
[346191451,1734769889005,-500.0,0.00020988,2]
[346191452,1734769889014,-500.0,0.00020988,2]
[346191453,1734769889024,-500.0,0.00020988,2]
[346191454,1734769889035,-500.0,0.00020988,2]
[346191455,1734769889046,-500.0,0.00020988,2]
[346191456,1734769889058,-500.0,0.00020988,2]
[346191457,1734769889068,-168.86975316,0.00020988,2]
[346191458,1734769889078,-500.0,0.00020988,2]
[346191459,1734769889088,-555.27,0.00020988,2]
[346191460,1734769889098,-500.0,0.00020988,2]
[346191461,1734769889107,-500.0,0.00020988,2]
[346191462,1734769889116,-500.0,0.00020988,2]
[346191463,1734769889126,-500.0,0.00020988,2]
[346191464,1734769889136,-500.0,0.00020988,2]
[346191465,1734769889146,-500.0,0.00020988,2]
[346191466,1734769889155,-500.0,0.00020988,2]
[346191467,1734769889164,-500.0,0.00020988,2]
[346191468,1734769889173,-500.0,0.00020988,2]
[346191469,1734769889183,-500.0,0.00020988,2]
[346191470,1734769889192,-614.79,0.00020988,2]
[346191471,1734769889201,-500.0,0.00020988,2]
[346191472,1734769889211,-500.0,0.00020988,2]
[346191473,1734769889220,-500.0,0.00020988,2]
[346191474,1734769889229,-500.0,0.00020988,2]
[346191475,1734769889238,-615.53,0.00020988,2]
[346191476,1734769889248,-500.0,0.00020988,2]
[346191477,1734769889257,-500.0,0.00020988,2]
[346191478,1734769889267,-500.0,0.00020988,2]
[346191479,1734769889276,-500.0,0.00020988,2]
[346191480,1734769889289,-500.0,0.00020988,2]
[346191481,1734769889298,-476.40221319,0.00020988,2]
[346191482,1734769889307,-500.0,0.00020988,2]
[346191483,1734769889317,-500.0,0.00020988,2]
[346191484,1734769889326,-500.0,0.00020988,2]
[346191485,1734769889336,-500.0,0.00020988,2]
[346191486,1734769889345,-500.0,0.00020988,2]
[346191487,1734769889354,-596.19,0.00020988,2]
[346191488,1734769889363,-500.0,0.00020988,2]
[346191489,1734769889373,-500.0,0.00020988,2]
[346191490,1734769889382,-500.0,0.00020988,2]
[346191491,1734769889391,-565.32331394,0.00020988,2]
[346191492,1734769889400,-508.87196786,0.00020988,2]
[346191493,1734769889410,-500.0,0.00020988,2]
[346191494,1734769889419,-500.0,0.00020988,2]
[346191495,1734769889428,-500.0,0.00020988,2]